fUSD/lending_fUSD_20251204
["ID","MTS","AMOUNT","RATE_DAILY","PERIOD"]
[396253999,1764886232236,-1000.0,0.000298,2]
[396254000,1764886232247,-333.7107,0.00030244,2]
[396254001,1764886232256,-277.35679052,0.00030244,2]
[396254002,1764886232266,-500.0,0.000305,7]
[396254003,1764886232275,-300.0,0.00030633,2]
[396254004,1764886232285,-500.0,0.00030634,2]
[396254005,1764886232294,-500.0,0.00030634,2]
[396254006,1764886232304,-151.0,0.00030634,2]
[396254007,1764886232314,-1000.0,0.00030634,2]
[396254008,1764886232324,-500.0,0.00030634,2]
[396254009,1764886232333,-1000.0,0.00030634,2]
[396254010,1764886232342,-500.0,0.00030634,2]
[396254011,1764886232351,-1000.0,0.00030634,2]
[396254012,1764886232361,-500.0,0.00030634,2]
[396254013,1764886232371,-1000.0,0.00030634,2]
[396254014,1764886232380,-369.60618093,0.00030634,2]
[396254015,1764886232392,-630.39381907,0.00030634,2]
[396254016,1764886232402,-1000.0,0.00030634,2]
[396254017,1764886232411,-1000.0,0.00030634,2]
[396254018,1764886232420,-1000.0,0.00030634,2]
[396254019,1764886232430,-638.42684482,0.00030634,2]
[396254020,1764886232440,-361.57315518,0.00030634,2]
[396254021,1764886232450,-1000.0,0.00030634,2]
[396254022,1764886232459,-1000.0,0.00030634,2]
[396254023,1764886232469,-385.19684482,0.00030634,2]
[396254024,1764886232480,-114.80315518,0.00030634,2]
[396254025,1764886232490,-574.12855637,0.00030634,2]
[396254026,1764886232499,-500.0,0.00030634,2]
[396254027,1764886232508,-500.0,0.00030634,2]
[396254028,1764886232518,-500.0,0.00030634,2]
[396254029,1764886232527,-151.0,0.00030634,2]
[396254030,1764886232537,-500.0,0.00030634,2]
[396254031,1764886232546,-500.0,0.00030634,2]
[396254032,1764886232555,-151.0,0.00030634,2]
[396254033,1764886232564,-695.39793187,0.00030634,2]
[396254034,1764886232574,-5000.0,0.00030653,2]
[396254035,1764886232583,-150.0,0.0003068,2]
[396254036,1764886232593,-1491.8,0.00030683,2]
[396254037,1764886232602,-500.0,0.00031,7]
[396254038,1764886232611,-688.49839244,0.00031182,2]
[396254039,1764886232620,-1000.0,0.000312,2]
[396254040,1764886232630,-7880.8368518,0.0003135,2]
[396254071,1764886238930,-187.25186109,0.0003135,2]
[396254072,1764886238941,-603.95005332,0.00031359,2]
[396254076,1764886240204,-334.96069996,0.00031359,2]
[396254078,1764886240277,-365.60756904,0.00031359,2]
[396254079,1764886240288,-1729.9999,0.00031359,2]
[396254080,1764886240663,-1373.96801136,0.00031359,2]
[396254082,1764886242909,-0.22785344,0.00031359,2]
[396254083,1764886243147,-276.00947847,0.00031359,2]
[396254085,1764886243158,-271.56632071,0.00031359,2]
[396254090,1764886243189,-342.40359298,0.00031359,2]
[396254092,1764886243199,-2500.0,0.00031361,2]
[396254093,1764886243209,-162.52615634,0.0003137,17]
[396254094,1764886243219,-404.81407048,0.000314,2]
[396254107,1764886246893,-1007.0,0.00031371,2]
[396254108,1764886246904,-1066.18592952,0.000314,2]
[396254109,1764886246914,-2389.26663048,0.00031451,3]
[396254110,1764886246926,-406.59937078,0.00031451,3]
[396254111,1764886246957,-695.555,0.00031451,3]
[396254112,1764886247107,-101443.36596605,0.00031451,3]
[396254117,1764886313863,153.224413,8.995e-05,2]
[396254118,1764886314194,153.224413,8.995e-05,2]
[396254119,1764886314888,153.224413,8.995e-05,2]
[396254120,1764886315179,153.224413,8.995e-05,2]
[396254121,1764886315457,153.224413,8.995e-05,2]
[396254122,1764886315791,153.224413,8.995e-05,2]
[396254123,1764886316603,153.224413,8.995e-05,2]
[396254124,1764886316923,153.224413,8.995e-05,2]
[396254125,1764886317187,153.224413,8.995e-05,2]
[396254126,1764886317377,153.224413,8.995e-05,2]
[396254127,1764886317508,153.224413,8.995e-05,2]
[396254128,1764886317654,153.224413,8.995e-05,2]
[396254129,1764886318750,153.224413,8.995e-05,2]
[396254130,1764886318961,153.224413,8.995e-05,2]
[396254131,1764886319235,153.224413,8.995e-05,2]
[396254132,1764886319417,153.224413,8.995e-05,2]
[396254133,1764886319856,153.224413,8.995e-05,2]
[396254134,1764886320028,153.224413,8.995e-05,2]
[396254135,1764886320334,153.224413,8.995e-05,2]
[396254136,1764886320570,153.224413,8.995e-05,2]
[396254137,1764886320717,153.224413,8.995e-05,2]
[396254138,1764886320847,153.224413,8.995e-05,2]
[396254139,1764886349394,156.339123,8.995e-05,2]
[396254140,1764886349742,156.339123,8.995e-05,2]
[396254141,1764886350768,156.339123,8.995e-05,2]
[396254142,1764886351270,156.339123,8.995e-05,2]
[396254143,1764886351729,156.339123,8.995e-05,2]
[396254144,1764886352030,156.339123,8.995e-05,2]
[396254145,1764886352635,156.339123,8.995e-05,2]
[396254146,1764886352974,156.339123,8.995e-05,2]
[396254147,1764886353216,156.339123,8.995e-05,2]
[396254148,1764886353408,156.339123,8.995e-05,2]
[396254149,1764886354670,156.020214,8.995e-05,2]
[396254150,1764886354710,155.781741,8.995e-05,2]
[396254151,1764886354880,156.020214,8.995e-05,2]
[396254152,1764886354922,155.781741,8.995e-05,2]
[396254153,1764886355084,155.781741,8.995e-05,2]
[396254154,1764886355263,155.781741,8.995e-05,2]
[396254155,1764886355717,155.781741,8.995e-05,2]
[396254156,1764886355910,155.781741,8.995e-05,2]
[396254157,1764886356104,155.781741,8.995e-05,2]
[396254158,1764886356347,155.781741,8.995e-05,2]
[396254159,1764886356752,155.781741,8.995e-05,2]
[396254160,1764886357141,155.781741,8.995e-05,2]
[396254161,1764886357404,155.781741,8.995e-05,2]
[396254162,1764886357553,155.781741,8.995e-05,2]
[396254163,1764886357958,155.781741,8.995e-05,2]
[396254164,1764886358193,155.781741,8.995e-05,2]
[396254165,1764886358584,155.781741,8.995e-05,2]
[396254166,1764886358823,155.781741,8.995e-05,2]
[396254167,1764886359204,155.781741,8.995e-05,2]
[396254168,1764886359426,155.781741,8.995e-05,2]
[396254169,1764886359586,155.781741,8.995e-05,2]
[396254170,1764886359700,155.781741,8.995e-05,2]
[396254171,1764886360068,155.781741,8.995e-05,2]
[396254172,1764886364612,156.188505,8.995e-05,2]
[396254173,1764886365152,156.188505,8.995e-05,2]
[396254174,1764886365876,156.188505,8.995e-05,2]
[396254175,1764886366328,156.188505,8.995e-05,2]
[396254176,1764886366701,156.188505,8.995e-05,2]
[396254177,1764886366932,156.188505,8.995e-05,2]
[396254178,1764886367421,156.188505,8.995e-05,2]
[396254179,1764886367678,156.188505,8.995e-05,2]
[396254180,1764886367858,156.188505,8.995e-05,2]
[396254181,1764886368057,156.188505,8.995e-05,2]
[396254182,1764886368137,160.370336,8.995e-05,2]
[396254183,1764886368331,156.188505,8.995e-05,2]
[396254184,1764886368603,160.370336,8.995e-05,2]
[396254185,1764886368809,156.188505,8.995e-05,2]
[396254186,1764886368961,156.188505,8.995e-05,2]
[396254187,1764886369067,156.188505,8.995e-05,2]
[396254188,1764886369263,156.188505,8.995e-05,2]
[396254189,1764886369432,156.188505,8.995e-05,2]
[396254198,1764887178690,1868.82750158,0.000209,30]
[396254259,1764887432688,-420.11102269,0.00015873,2]
[396254260,1764887432700,-639.6045183,0.00015873,2]
[396254261,1764887432711,-500.0,0.00015873,2]
[396254262,1764887432721,-500.0,0.00015873,2]
[396254263,1764887432732,-601.56405672,0.00015873,2]
[396254264,1764887432743,-500.0,0.00015873,2]
[396254265,1764887432755,-500.0,0.00015873,2]
[396254266,1764887432766,-304.0959739,0.00016421,2]
[396254267,1764887432776,-500.0,0.00016421,2]
[396254268,1764887432787,-183.32644985,0.00016421,2]
[396254269,1764887432800,-316.67355015,0.00016421,2]
[396254270,1764887432811,-500.0,0.00016421,2]
[396254271,1764887432820,-168.53957899,0.0001699,2]
[396254272,1764887432881,-16.23637236,0.0001699,2]
[396254273,1764887432891,-184.77595135,0.0001699,2]
[396254274,1764887432898,-151.0,0.00016997,2]
[396254275,1764887432905,-300.0,0.00016998,2]
[396254276,1764887432912,-300.0,0.00016998,2]
[396254277,1764887432918,-1200.0,0.00016998,2]
[396254278,1764887432924,-493.0,0.00016998,2]
[396254279,1764887432931,-300.0,0.00016998,2]
[396254280,1764887432938,-300.0,0.00016999,2]
[396254281,1764887432944,-500.0,0.00016999,2]
[396254282,1764887432954,-500.0,0.00016999,2]
[396254283,1764887432963,-500.0,0.00016999,2]
[396254284,1764887432973,-500.0,0.00016999,2]
[396254285,1764887432982,-500.0,0.00016999,2]
[396254286,1764887432992,-500.0,0.00016999,2]
[396254287,1764887433001,-500.0,0.00016999,2]
[396254288,1764887433011,-500.0,0.00016999,2]
[396254289,1764887433021,-500.0,0.00016999,2]
[396254290,1764887433030,-500.0,0.00016999,2]
[396254291,1764887433039,-500.0,0.00016999,2]
[396254292,1764887433048,-500.0,0.00016999,2]
[396254293,1764887433258,-500.0,0.00016999,2]
[396254294,1764887433287,-500.0,0.00016999,2]
[396254295,1764887433297,-500.0,0.00016999,2]
[396254296,1764887433309,-500.0,0.00016999,2]
[396254297,1764887433318,-500.0,0.00016999,2]
[396254298,1764887433327,-467.02826332,0.00016999,2]
[396254299,1764887433337,-500.0,0.00016999,2]
[396254300,1764887433346,-500.0,0.00016999,2]
[396254301,1764887433356,-500.0,0.00016999,2]
[396254302,1764887433365,-500.0,0.00016999,2]
[396254303,1764887433375,-500.0,0.00016999,2]
[396254304,1764887433384,-500.0,0.00016999,2]
[396254305,1764887433393,-487.55886713,0.00016999,2]
[396254306,1764887433403,-500.0,0.00016999,2]
[396254307,1764887433413,-500.0,0.00016999,2]
[396254308,1764887433423,-500.0,0.00016999,2]
[396254309,1764887433432,-500.0,0.00016999,2]
[396254310,1764887433442,-500.0,0.00016999,2]
[396254311,1764887433451,-500.0,0.00016999,2]
[396254312,1764887433461,-500.0,0.00016999,2]
[396254313,1764887433470,-500.0,0.00016999,2]
[396254314,1764887433480,-500.0,0.00016999,2]
[396254315,1764887433489,-500.0,0.00016999,2]
[396254316,1764887433499,-500.0,0.00016999,2]
[396254317,1764887433509,-500.0,0.00016999,2]
[396254318,1764887433518,-500.0,0.00016999,2]
[396254319,1764887433529,-500.0,0.00016999,2]
[396254320,1764887433538,-500.0,0.00016999,2]
[396254321,1764887433548,-500.0,0.00016999,2]
[396254322,1764887433557,-500.0,0.00016999,2]
[396254323,1764887433567,-500.0,0.00016999,2]
[396254324,1764887433576,-500.0,0.00016999,2]
[396254325,1764887433586,-500.0,0.00016999,2]
[396254326,1764887433597,-500.0,0.00016999,2]
[396254327,1764887433607,-500.0,0.00016999,2]
[396254328,1764887433617,-500.0,0.00016999,2]
[396254329,1764887433626,-500.0,0.00016999,2]
[396254330,1764887433636,-500.0,0.00016999,2]
[396254331,1764887433647,-600.0,0.00016999,2]
[396254332,1764887433656,-500.0,0.00016999,2]
[396254333,1764887433666,-500.0,0.00016999,2]
[396254334,1764887433676,-500.0,0.00016999,2]
[396254335,1764887433685,-500.0,0.00016999,2]
[396254336,1764887433694,-500.0,0.00016999,2]
[396254337,1764887433705,-500.0,0.00016999,2]
[396254338,1764887433714,-500.0,0.00016999,2]
[396254339,1764887433723,-500.0,0.00016999,2]
[396254340,1764887433732,-500.0,0.00016999,2]
[396254341,1764887433741,-500.0,0.00016999,2]
[396254342,1764887433751,-500.0,0.00016999,2]
[396254343,1764887433760,-500.0,0.00016999,2]
[396254344,1764887433770,-500.0,0.00016999,2]
[396254345,1764887433779,-500.0,0.00016999,2]
[396254346,1764887433788,-500.0,0.00016999,2]
[396254347,1764887433798,-479.15042352,0.00016999,2]
[396254348,1764887433807,-500.0,0.00016999,2]
[396254349,1764887433816,-500.0,0.00016999,2]
[396254350,1764887433827,-396.87983978,0.00016999,2]
[396254351,1764887433837,-202.89835561,0.00016999,2]
[396254352,1764887433849,-500.0,0.00016999,2]
[396254353,1764887433859,-474.82613952,0.00016999,2]
[396254354,1764887433869,-500.0,0.00016999,2]
[396254355,1764887433879,-500.0,0.00016999,2]
[396254356,1764887433889,-500.0,0.00016999,2]
[396254357,1764887433899,-500.0,0.00016999,2]
[396254358,1764887433910,-500.0,0.00016999,2]
[396254359,1764887433920,-5160.11266639,0.00017,2]
[396254360,1764887433934,-4835.2996689,0.00017,2]
[396254361,1764887433947,-2973.39073889,0.00017,2]
[396254371,1764887439718,-9519.46653766,0.00017,2]
[396254379,1764887441991,-1647.08127978,0.00017,2]
[396254380,1764887442021,-2012828.16060705,0.00017,2]
[396254381,1764887442484,-8741.09929495,0.00017,2]
[396254382,1764887442495,-8947.21879473,0.00017,2]
[396254383,1764887442507,-8943.78386462,0.00017,2]
[396254384,1764887442518,-9077.54866152,0.00017,2]
[396254385,1764887442530,-8943.84023489,0.00017,2]
[396254392,1764887445151,-1396.82961508,0.00017,2]
[396254393,1764887445163,-2210.079186,0.00017,2]
[396254394,1764887445195,-2018.73099543,0.00017,2]
[396254395,1764887445207,-1415.83188838,0.00017,2]
[396254401,1764887446926,-1484519.35842399,0.00017,2]
[396254402,1764887446936,-466.01965535,0.0001706,2]
[396254403,1764887446947,-1004.90169053,0.0001716,2]
[396254404,1764887446957,-439.12831348,0.0001716,2]
[396254405,1764887446966,-466.01965533,0.00017185,2]
[396254406,1764887446975,-629.85,0.00017234,2]
[396254407,1764887446983,-162.52615634,0.0001726,2]
[396254408,1764887446992,-466.01965533,0.00017311,2]
[396254409,1764887447001,-8752.91880425,0.0001736,2]
[396254410,1764887447010,-466.01965533,0.00017436,2]
[396254411,1764887447019,-8752.91880425,0.00017495,2]
[396254412,1764887447028,-466.01965533,0.00017561,2]
[396254413,1764887447037,-4133.86247268,0.00017631,2]
[396254414,1764887447048,-4619.05633157,0.00017631,2]
[396254415,1764887447057,-466.01965533,0.00017686,2]
[396254416,1764887447066,-8752.91880425,0.00017766,2]
[396254417,1764887447075,-466.01965533,0.00017812,2]
[396254418,1764887447083,-8752.91880425,0.00017901,2]
[396254419,1764887447092,-184.77595135,0.0001799,2]
[396254420,1764887447101,-300.0,0.00017999,2]
[396254421,1764887447110,-301.55735151,0.00017999,2]
[396254422,1764887447119,-36904.2081964,0.00018,2]
[396254423,1764887447130,-8467.25462014,0.00018,2]
[396254424,1764887447140,-317.868145,0.00018,2]
[396254425,1764887447433,-60567.27066417,0.00018,2]
[396254429,1764887538678,178.54270679,0.00015772,2]
[396254485,1764888363655,164.84,8.524e-05,2]
[396254486,1764888363930,164.84,0.00011365,2]
[396254493,1764888567462,-164.84,0.00014206,2]
[396254494,1764888567484,-118.13839321,0.00015772,2]
[396254495,1764888567506,-300.0,0.00016199,2]
[396254496,1764888567528,-116.88452421,0.000162,2]
[396254497,1764888569506,-33.11547579,0.000162,2]
[396254498,1764888569529,-150.0,0.000162,2]
[396254499,1764888569553,-39.06448687,0.000162,2]
[396254500,1764888573297,-110.93551313,0.000162,2]
[396254501,1764888573320,-111.04555355,0.000162,2]
[396254502,1764888575483,-38.95444645,0.000162,2]
[396254503,1764888575511,-143.83491874,0.000162,2]
[396254504,1764888576561,-6.16508126,0.000162,2]
[396254505,1764888576587,-150.0,0.000162,2]
[396254506,1764888576610,-39.3281609,0.000162,2]
[396254507,1764888581287,-110.6718391,0.000162,2]
[396254508,1764888581313,-75.8981609,0.000162,2]
[396254509,1764888588209,-74.1018391,0.000162,2]
[396254510,1764888588232,-98.75017195,0.000162,2]
[396254511,1764888604487,2000.0,0.00022,30]
[396254514,1764888627460,-51.24982805,0.000162,2]
[396254515,1764888627485,-152.08967841,0.00016319,2]
[396254522,1764888632275,-97.91032159,0.00016319,2]
[396254523,1764888632286,-5043.96488346,0.00016438,2]
[396254524,1764888632298,-47.68511654,0.00016438,2]
[396254525,1764888632308,-150.0,0.0001665,2]
[396254526,1764888632317,-300.0,0.00016998,2]
[396254527,1764888632327,-355.55996647,0.00016999,2]
[396254528,1764888632338,-24.63491737,0.00016999,2]
[396254529,1764888632350,-832.22856812,0.00016999,2]
[396254530,1764888632362,-84.05185178,0.00016999,2]
[396254531,1764888632372,-500.0,0.00016999,2]
[396254532,1764888632381,-500.0,0.00016999,3]
[396254533,1764888632391,-500.0,0.00016999,4]
[396254534,1764888632401,-11154.9499846,0.00017037,2]
[396254535,1764888632436,-2332.85146012,0.00017037,2]
[396254536,1764888632835,-517.52587944,0.00017037,2]
[396254537,1764888632847,-2381.13261799,0.00017037,2]
[396254538,1764888632859,-17407.03046555,0.00017037,2]
[396254539,1764888632871,-619.35433313,0.00017037,2]
[396254540,1764888632882,-1378.190429,0.00017037,2]
[396254541,1764888632892,-1871.09312592,0.00017037,2]
[396254542,1764888632998,-286.98,0.00017037,2]
[396254594,1764888638959,-252.52558488,0.00017037,2]
[396254595,1764888638970,-1968.24209748,0.00017037,2]
[396254596,1764888638985,-875.29292091,0.00017037,2]
[396254597,1764888638996,-4707.47864378,0.00017037,2]
[396254598,1764888639007,-4806.96965062,0.00017037,2]
[396254599,1764888639018,-40750.444,0.00017037,2]
[396254600,1764888639029,-8355.461751,0.00017037,2]
[396254601,1764888639041,-18115.84797248,0.00017037,2]
[396254602,1764888639050,-164.84,0.00017047,2]
[396254603,1764888639059,-150.0,0.000171,2]
[396254604,1764888639068,-150.0,0.000171,2]
[396254605,1764888639078,-150.0,0.000171,2]
[396254606,1764888639087,-1858.2073817,0.00017263,2]
[396254607,1764888639097,-150.0,0.00017264,2]
[396254608,1764888639106,-745.9,0.00017408,2]
[396254609,1764888639115,-150.0,0.0001755,2]
[396254610,1764888639124,-229.86739996,0.00017648,2]
[396254611,1764888639134,-250.0,0.00017716,2]
[396254612,1764888639143,-7261.27984161,0.00017808,2]
[396254613,1764888639152,-6632.64822825,0.00017819,2]
[396254614,1764888639466,-628.63161334,0.00017819,2]
[396254615,1764888639476,-250.0,0.0001782,2]
[396254616,1764888639485,-631.36838666,0.0001783,2]
[396254618,1764888640543,-562.73,0.0001783,2]
[396254619,1764888640557,-2469.10847918,0.0001783,2]
[396254620,1764888640587,-3598.07297575,0.0001783,2]
[396254621,1764888640596,-2207.1858638,0.00017841,2]
[396254622,1764888640608,-817.31434984,0.00017841,2]
[396254624,1764888640988,-4236.77962795,0.00017841,2]
[396254625,1764888640998,-3614.76624333,0.00017852,2]
[396254626,1764888641008,-523.34287504,0.00017852,2]
[396254627,1764888641019,-2050.77884625,0.00017852,2]
[396254628,1764888641031,-251.37,0.00017852,2]
[396254629,1764888641044,-309.3,0.00017852,2]
[396254630,1764888641190,-511.72187697,0.00017852,2]
[396254631,1764888641200,-6353.91504314,0.00017864,2]
[396254632,1764888641211,-665.4573225,0.00017864,2]
[396254656,1764888644031,-241.90747595,0.00017864,2]
[396254657,1764888644043,-596.17252405,0.00017875,2]
[396254658,1764888644057,-1233.02197146,0.00017875,2]
[396254659,1764888644087,-3583.24167825,0.00017875,2]
[396254660,1764888644140,-1848.84366783,0.00017875,2]
[396254661,1764888644151,-494.84303073,0.00017886,2]
[396254662,1764888644163,-451.395,0.00017886,2]
[396254663,1764888644214,-318.16468474,0.00017886,2]
[396254664,1764888644265,-3851.57361521,0.00017886,2]
[396254670,1764888647209,-2145.30351091,0.00017886,2]
[396254671,1764888647219,-3530.13523769,0.00017897,2]
[396254672,1764888647253,-838.520007,0.00017897,2]
[396254673,1764888647266,-956.0,0.00017897,2]
[396254674,1764888647278,-772.48507084,0.00017897,2]
[396254675,1764888647290,-1164.13952606,0.00017897,2]
[396254676,1764888647300,-277.0,0.000179,2]
[396254677,1764888647310,-636.96618336,0.00017908,2]
[396254678,1764888647320,-664.05848872,0.00017908,2]
[396254679,1764888647331,-1586.23580595,0.00017908,2]
[396254680,1764888647585,-1121.6358695,0.00017908,2]
[396254681,1764888647598,-6610.21274598,0.00017908,2]
[396254682,1764888647630,-1800.0,0.00017908,2]
[396254683,1764888647662,-14439.6847663,0.00017908,2]
[396254687,1764888687591,-216.62387148,0.00013699,2]
[396254694,1764888843323,162.07,0.00013698,30]
[396254697,1764888886605,500.0,0.00015,4]
[396254698,1764888887540,-69.55612852,0.00013699,2]
[396254699,1764888887561,-94.62336139,0.00017,2]
[396254700,1764888889998,-176.26147825,0.00017,2]
[396254701,1764888893302,-288.04462798,0.00017,2]
[396254702,1764888895067,-255.47155245,0.00017,2]
[396254703,1764888897636,-188.98395667,0.00017,2]
[396254704,1764888900079,-264.7727117,0.00017,2]
[396254763,1764889032992,-252.55677412,0.00016973,2]
[396254764,1764889035144,-205.37880987,0.00016973,2]
[396254765,1764889035167,-13.6936666,0.00016973,2]
[396254767,1764889036894,-403.99664958,0.00016973,2]
[396254772,1764889107893,-82.30968382,0.00016973,2]
[396254773,1764889107918,-257.12396209,0.00016973,2]
[396254774,1764889109349,-214.29268096,0.00016973,2]
[396254775,1764889110740,-28.58335695,0.00016973,2]
[396254776,1764889110765,-203.47531605,0.00017,2]
[396254777,1764889110788,-152.21227946,0.00017414,2]
[396254778,1764889114797,-97.78772054,0.00017414,2]
[396254779,1764889114820,-184.46659073,0.00017521,2]
[396254780,1764889118572,-294.24846006,0.00017521,2]
[396254781,1764889120578,-23.41751166,0.00017521,2]
[396254782,1764889120602,-259.73775802,0.00017521,2]
[396254783,1764889124121,-197.82330878,0.00017521,2]
[396254784,1764889126364,-524.94359231,0.00017521,2]
[396254785,1764889137535,-195.55953185,0.00017,2]
[396254786,1764889139820,-164.42404291,0.00017,2]
[396254787,1764889143064,-244.52844755,0.00016999,2]
[396254788,1764889146050,-317.86186947,0.00016,2]
[396254789,1764889148489,-337.2520856,0.00016,2]
[396254790,1764889150341,-305.73905127,0.00016,2]
[396254791,1764889152076,-212.14699366,0.00016,2]
[396254792,1764889152100,-55.47155245,0.00016999,2]
[396254793,1764889152122,-77.45405598,0.00017,2]
[396254794,1764889162743,-494.24846006,0.00017,2]
[396254795,1764889164957,-385.52125497,0.00017,2]
[396254796,1764889167310,-265.67687044,0.00017,2]
[396254797,1764889168853,-160.88173586,0.00017,2]
[396254798,1764889171356,-289.2812312,0.00017,2]
[396254799,1764889173931,-200.05410493,0.00017,2]
[396254800,1764889176031,-331.80715662,0.00017,2]
[396254801,1764889177760,-453.73065433,0.00017,2]
[396254802,1764889179872,-234.32312956,0.00017,2]
[396254803,1764889182715,-268.60669344,0.00017,2]
[396254804,1764889185202,-300.0,0.00017,2]
[396254805,1764889188079,-260.88173586,0.00017,2]
[396254806,1764889193006,-169.47376315,0.00017,2]
[396254807,1764889194710,-206.85244662,0.00017,2]
[396254808,1764889196856,-157.74200922,0.00017,2]
[396254809,1764889198546,-207.76044612,0.00017,2]
[396254810,1764889201499,-386.46174827,0.00017,2]
[396254811,1764889204007,-150.0,0.00016999,2]
[396254812,1764889204032,-134.94160184,0.00017,2]
[396254813,1764889205623,-328.58664989,0.00016973,2]
[396254814,1764889208417,-171.41335011,0.00016973,2]
[396254815,1764889208440,-133.99603233,0.00017,2]
[396254816,1764889211137,-167.22953694,0.00017,2]
[396254817,1764889214637,-151.10096169,0.00017,2]
[396254818,1764889218397,-161.18834631,0.00017,2]
[396254819,1764889220003,-253.97673242,0.00017,2]
[396254820,1764889222701,-391.75056487,0.00017,2]
[396254821,1764889225175,-193.53922271,0.00017,2]
[396254822,1764889227607,-155.88528598,0.00017,2]
[396254824,1764889229767,-200.24622943,0.00017,2]
[396254826,1764889232700,-500.0,0.00017,2]
[396254828,1764889234466,-210.60517191,0.00017,2]
[396254833,1764889353763,157.056977,8.995e-05,2]
[396254834,1764889354025,157.056977,8.995e-05,2]
[396254835,1764889354188,157.056977,8.995e-05,2]
[396254836,1764889354334,157.056977,8.995e-05,2]
[396254837,1764889354918,157.056977,8.995e-05,2]
[396254838,1764889355302,157.056977,8.995e-05,2]
[396254839,1764889355600,157.056977,8.995e-05,2]
[396254840,1764889355872,157.056977,8.995e-05,2]
[396254841,1764889356091,157.056977,8.995e-05,2]
[396254842,1764889356147,151.444637,8.995e-05,2]
[396254843,1764889356363,157.056977,8.995e-05,2]
[396254844,1764889356399,151.444637,8.995e-05,2]
[396254845,1764889356804,157.056977,8.995e-05,2]
[396254846,1764889356844,151.444637,8.995e-05,2]
[396254847,1764889357067,157.056977,8.995e-05,2]
[396254848,1764889357276,157.056977,8.995e-05,2]
[396254849,1764889357542,157.056977,8.995e-05,2]
[396254850,1764889357984,151.65343,8.995e-05,2]
[396254851,1764889358188,151.65343,8.995e-05,2]
[396254852,1764889358585,151.65343,8.995e-05,2]
[396254853,1764889358898,151.65343,8.995e-05,2]
[396254854,1764889359467,151.65343,8.995e-05,2]
[396254855,1764889359906,151.65343,8.995e-05,2]
[396254856,1764889360320,151.65343,8.995e-05,2]
[396254857,1764889360809,151.65343,8.995e-05,2]
[396254858,1764889361096,151.65343,8.995e-05,2]
[396254859,1764889361382,17.80205638,8.995e-05,2]
[396254860,1764889361415,133.85137362,8.995e-05,2]
[396254861,1764889361714,151.65343,8.995e-05,2]
[396254862,1764889362161,151.65343,8.995e-05,2]
[396254863,1764889362379,151.65343,8.995e-05,2]
[396254864,1764889362637,151.65343,8.995e-05,2]
[396254865,1764889363600,151.65343,8.995e-05,2]
[396254866,1764889363932,151.65343,8.995e-05,2]
[396254867,1764889364123,151.65343,8.995e-05,2]
[396254868,1764889364405,151.65343,8.995e-05,2]
[396254869,1764889364669,151.65343,8.995e-05,2]
[396254870,1764889364910,151.65343,8.995e-05,2]
[396254871,1764889365316,151.65343,8.995e-05,2]
[396254872,1764889365707,151.65343,8.995e-05,2]
[396254873,1764889365924,151.65343,8.995e-05,2]
[396254874,1764889366246,151.65343,8.995e-05,2]
[396254875,1764889366866,151.65343,8.995e-05,2]
[396254876,1764889367206,151.65343,8.995e-05,2]
[396254877,1764889367344,151.65343,8.995e-05,2]
[396254878,1764889370319,162.175406,8.995e-05,2]
[396254879,1764889370574,162.175406,8.995e-05,2]
[396254880,1764889370971,162.175406,8.995e-05,2]
[396254881,1764889371546,162.175406,8.995e-05,2]
[396254882,1764889371752,162.175406,8.995e-05,2]
[396254883,1764889372008,162.175406,8.995e-05,2]
[396254884,1764889372232,162.175406,8.995e-05,2]